bitfinex/quotes_BTCUSD_20251102
["timestamp","ask_amount","ask_price","bid_price","bid_amount"]
[1762046230712,0.00088333,110190.0,110180.0,1.23050887]
[1762046231217,0.00088333,110190.0,110180.0,1.14068986]
[1762046236366,0.00088333,110190.0,110180.0,1.28948986]
[1762046261383,0.00088333,110190.0,110180.0,1.35495364]
[1762046264221,0.00088333,110190.0,110180.0,1.35595364]
[1762046264627,0.00088333,110190.0,110180.0,1.69495364]
[1762046264834,0.00088333,110190.0,110180.0,2.17701272]
[1762046265032,0.00088333,110190.0,110180.0,2.17801272]
[1762046266355,0.00088333,110190.0,110180.0,2.19793998]
[1762046266702,0.00088333,110190.0,110180.0,2.13254892]
[1762046266929,0.00088333,110190.0,110180.0,2.12554892]
[1762046267263,0.00088333,110190.0,110180.0,2.20193255]
[1762046267741,0.00088333,110190.0,110180.0,2.13854892]
[1762046269094,1e-08,110190.0,110180.0,2.13854892]
[1762046269320,1e-08,110190.0,110180.0,2.20391982]
[1762046271826,1e-08,110190.0,110180.0,2.13854892]
[1762046272388,1e-08,110190.0,110180.0,2.20391997]
[1762046272597,1e-08,110190.0,110180.0,2.13854892]
[1762046273388,1e-08,110190.0,110180.0,2.2039192]
[1762046276517,1e-08,110190.0,110180.0,2.19391921]
[1762046277357,1e-08,110190.0,110180.0,1.017199]
[1762046277549,1e-08,110190.0,110180.0,1.80112528]
[1762046286321,1e-08,110190.0,110180.0,1.735755]
[1762046294582,1e-08,110190.0,110180.0,1.8172808]
[1762046299180,0.21760487,110240.0,110210.0,0.18147173]
[1762046299389,0.24854802,110240.0,110230.0,0.02389]
[1762046299580,0.24854802,110240.0,110230.0,0.2053288]
[1762046299782,0.23239802,110240.0,110230.0,0.2281388]
[1762046300095,0.25966945,110240.0,110230.0,0.2281388]
[1762046300301,0.25617971,110240.0,110230.0,0.2281388]
[1762046300631,0.22399743,110240.0,110230.0,0.22818703]
[1762046300844,0.04257508,110240.0,110230.0,0.22818703]
[1762046301063,0.21999743,110240.0,110230.0,0.22818703]
[1762046301283,0.22399743,110240.0,110230.0,0.22818703]
[1762046301497,0.04257508,110240.0,110230.0,0.22818703]
[1762046301724,0.22399743,110240.0,110230.0,0.22818703]
[1762046301943,0.04257508,110240.0,110230.0,0.22818703]
[1762046302823,0.22399743,110240.0,110230.0,0.22818703]
[1762046303047,0.04257508,110240.0,110230.0,0.22818703]
[1762046303251,0.22399743,110240.0,110230.0,0.22818703]
[1762046304698,0.04257508,110240.0,110230.0,0.22818703]
[1762046305777,0.22399743,110240.0,110230.0,0.22818703]
[1762046306542,0.04257508,110240.0,110230.0,0.22818703]
[1762046306746,0.22399743,110240.0,110230.0,0.22818703]
[1762046306955,0.04257508,110240.0,110230.0,0.22818703]
[1762046307159,0.22399743,110240.0,110230.0,0.22818703]
[1762046307927,0.04257508,110240.0,110230.0,0.22818703]
[1762046308263,0.22399743,110240.0,110230.0,0.22818703]
[1762046308875,0.04257508,110240.0,110230.0,0.22818703]
[1762046309072,0.22399743,110240.0,110230.0,0.22818703]
[1762046310372,0.21379743,110240.0,110230.0,0.22818703]
[1762046311554,0.03237508,110240.0,110230.0,0.22818703]
[1762046315040,0.21379743,110240.0,110230.0,0.22818703]
[1762046315283,0.03237508,110240.0,110230.0,0.22818703]
[1762046331020,0.03237508,110240.0,110230.0,0.24531319]
[1762046331595,0.03237508,110240.0,110230.0,0.22818703]
[1762046331797,0.02837508,110240.0,110230.0,0.22818703]
[1762046332204,0.03037508,110240.0,110230.0,0.22818703]
[1762046332412,0.21179743,110240.0,110230.0,0.22818703]
[1762046332804,0.21179743,110240.0,110230.0,0.04674823]
[1762046333408,0.22825743,110240.0,110230.0,0.04674823]
[1762046333762,0.21179743,110240.0,110230.0,0.04674823]
[1762046333909,0.21179743,110240.0,110230.0,0.22818703]
[1762046334111,0.23845743,110240.0,110230.0,0.02393823]
[1762046334312,0.26305743,110240.0,110230.0,4.823e-05]
[1762046334523,0.65502057,110240.0,110230.0,4.823e-05]
[1762046334713,0.63042057,110240.0,110230.0,0.01563823]
[1762046334909,0.63042057,110240.0,110230.0,0.05297823]
[1762046335625,0.23845743,110240.0,110230.0,0.05297823]
[1762046336160,0.23845743,110240.0,110230.0,0.23441703]
[1762046337058,0.23845743,110240.0,110230.0,0.05297823]
[1762046337375,0.63040377,110240.0,110230.0,0.05297823]
[1762046341039,1.47978216,110240.0,110230.0,4.823e-05]
[1762046341238,4.81978216,110240.0,110230.0,4.823e-05]
[1762046341438,5.02078216,110240.0,110230.0,4.823e-05]
[1762046341637,4.62883582,110240.0,110230.0,4.823e-05]
[1762046341990,4.62683582,110240.0,110230.0,4.823e-05]
[1762046342204,5.01878216,110240.0,110230.0,4.823e-05]
[1762046342415,5.02578216,110240.0,110230.0,4.823e-05]
[1762046343269,5.04540584,110240.0,110230.0,4.823e-05]
[1762046344967,5.05963962,110240.0,110230.0,4.823e-05]
[1762046345608,5.07387357,110240.0,110230.0,4.823e-05]
[1762046346826,5.07386707,110240.0,110230.0,4.823e-05]
[1762046347464,5.05424339,110240.0,110230.0,4.823e-05]
[1762046348016,5.0738468,110240.0,110230.0,4.823e-05]
[1762046349226,5.05424216,110240.0,110230.0,4.823e-05]
[1762046350707,5.46578653,110240.0,110230.0,4.823e-05]
[1762046350872,5.07384019,110240.0,110230.0,4.823e-05]
[1762046351238,5.45878653,110240.0,110230.0,4.823e-05]
[1762046351440,5.06684019,110240.0,110230.0,4.823e-05]
[1762046351641,5.07784019,110240.0,110230.0,4.823e-05]
[1762046355587,5.12079526,110240.0,110230.0,4.823e-05]
[1762046356487,5.0881302,110240.0,110230.0,4.823e-05]
[1762046358377,5.10236485,110240.0,110230.0,4.823e-05]
[1762046359212,5.50431118,110240.0,110230.0,4.823e-05]
[1762046359460,5.12136484,110240.0,110230.0,4.823e-05]
[1762046359665,5.51331118,110240.0,110230.0,4.823e-05]
[1762046359931,5.12136484,110240.0,110230.0,4.823e-05]
[1762046361312,5.10713089,110240.0,110230.0,4.823e-05]
[1762046361965,5.10706289,110240.0,110230.0,4.823e-05]
[1762046364741,5.12129749,110240.0,110230.0,4.823e-05]
[1762046365876,5.51324383,110240.0,110230.0,4.823e-05]
[1762046366076,5.53961515,110240.0,110230.0,4.823e-05]
[1762046366296,6.3799548,110240.0,110230.0,4.823e-05]
[1762046366527,6.35617289,110240.0,110230.0,4.823e-05]
[1762046367221,6.3316491,110240.0,110230.0,4.823e-05]
[1762046369125,6.31741445,110240.0,110230.0,4.823e-05]
[1762046370108,6.30841445,110240.0,110230.0,4.823e-05]
[1762046370684,6.35741204,110240.0,110230.0,4.823e-05]
[1762046375188,0.41770342,110180.0,110170.0,0.0008235]
[1762046375423,1.2278861,110180.0,110170.0,0.00087349]
[1762046375645,1.2515361,110180.0,110170.0,0.00087349]
[1762046375860,1.27882474,110180.0,110170.0,0.00087349]
[1762046376267,1.27882474,110180.0,110170.0,0.00287349]
[1762046380940,1.28789324,110180.0,110170.0,0.00287349]
[1762046381797,1.62789324,110180.0,110170.0,0.00287349]
[1762046382255,1.62889324,110180.0,110170.0,0.00287349]
[1762046382663,1.62889324,110180.0,110170.0,0.00087349]
[1762046384001,1.62889324,110180.0,110170.0,0.00487349]
[1762046384422,1.62889324,110180.0,110170.0,0.00087349]
[1762046384865,1.62889324,110180.0,110170.0,0.00487349]
[1762046386987,0.82035056,110180.0,110170.0,0.05539349]
[1762046387217,1.2032284,110180.0,110170.0,0.05539349]
[1762046387418,1.0032284,110180.0,110170.0,0.05539349]
[1762046387620,0.9867284,110180.0,110170.0,0.05539349]
[1762046388775,0.59478206,110180.0,110170.0,0.05539349]
[1762046388983,0.61128206,110180.0,110170.0,0.05539349]
[1762046389460,0.61128206,110180.0,110170.0,0.03159349]
[1762046389685,1.0032284,110180.0,110170.0,0.03159349]
[1762046389891,1.0268784,110180.0,110170.0,0.01619349]
[1762046392666,0.63493206,110180.0,110170.0,0.01619349]
[1762046392890,1.0268784,110180.0,110170.0,0.01619349]
[1762046393098,1.0268784,110180.0,110170.0,0.31619349]
[1762046396264,0.61128206,110180.0,110170.0,0.35539349]
[1762046396670,1.0032284,110180.0,110170.0,0.35539349]
[1762046397945,1.0032284,110180.0,110170.0,0.33159349]
[1762046399351,0.61128206,110180.0,110170.0,0.33159349]
[1762046401965,0.58499206,110180.0,110170.0,0.53744111]
[1762046402166,0.58499206,110180.0,110170.0,0.35590349]
[1762046402917,0.60051206,110180.0,110170.0,0.35590349]
[1762046404857,0.60051206,110180.0,110170.0,0.53744111]
[1762046405063,0.58499206,110180.0,110170.0,0.53744111]
[1762046407135,0.58499206,110180.0,110170.0,0.35590349]
[1762046407345,0.60051206,110180.0,110170.0,0.33159349]
[1762046410020,0.60051206,110180.0,110170.0,0.53744111]
[1762046410649,0.60051206,110180.0,110170.0,0.35590349]
[1762046411441,0.60051206,110180.0,110170.0,0.53744111]
[1762046411644,0.57322342,110180.0,110170.0,0.53744111]
[1762046412093,0.55770342,110180.0,110170.0,0.53744111]
[1762046414641,0.57322342,110180.0,110170.0,0.53744111]
[1762046417861,0.57322342,110180.0,110170.0,0.35590349]
[1762046420541,0.55770342,110180.0,110170.0,0.53744111]
[1762046420756,0.37618228,110180.0,110170.0,0.53744111]
[1762046420898,0.55770342,110180.0,110170.0,0.53744111]
[1762046421303,0.52152114,110180.0,110170.0,0.53744111]
[1762046421952,0.39129467,110190.0,110180.0,0.18152114]
[1762046422170,0.77198403,110190.0,110180.0,0.05156]
[1762046422374,0.22219403,110190.0,110180.0,0.31929195]
[1762046422784,0.22219403,110190.0,110180.0,0.34657748]
[1762046424190,0.21768695,110190.0,110180.0,0.34657748]
[1762046424595,0.21768695,110190.0,110180.0,0.35257748]
[1762046425870,0.21768695,110190.0,110180.0,0.17105634]
[1762046426121,0.21768695,110190.0,110180.0,0.35257748]
[1762046427541,0.43410695,110190.0,110180.0,0.08484553]
[1762046427720,0.44389695,110190.0,110180.0,0.08484553]
[1762046428192,0.44389695,110190.0,110180.0,0.06165553]
[1762046428418,0.44389695,110190.0,110180.0,0.03437]
[1762046430546,0.40771467,110190.0,110180.0,0.03437]
[1762046431146,0.40771467,110190.0,110180.0,0.21589114]
[1762046431357,0.40771467,110190.0,110180.0,0.32611195]
[1762046431358,0.19129467,110190.0,110180.0,0.32611195]
[1762046434445,0.20696467,110190.0,110180.0,0.32611195]
[1762046434664,0.20696467,110190.0,110180.0,0.03437]
[1762046438148,0.20696467,110190.0,110180.0,0.21589114]
[1762046442898,0.20974686,110200.0,110180.0,0.3950678]
[1762046443116,0.5450821,110200.0,110190.0,0.23282467]
[1762046443527,0.54057475,110200.0,110190.0,0.23282467]
[1762046443998,0.34022076,110200.0,110190.0,0.23282467]
[1762046444208,0.00022076,110200.0,110190.0,0.23282467]
[1762046445039,0.18170896,110200.0,110190.0,0.23282467]
[1762046445653,0.18170896,110200.0,110190.0,0.23482467]
[1762046447593,0.18170896,110200.0,110190.0,0.05332]
[1762046449684,0.18170896,110200.0,110190.0,0.23482467]
[1762046454147,0.18170896,110200.0,110190.0,0.05332]
[1762046458562,0.18170896,110200.0,110190.0,0.23482467]
[1762046461540,0.18170896,110200.0,110190.0,0.05332]
[1762046461966,0.18170896,110200.0,110190.0,0.23482467]
[1762046462165,0.18170896,110200.0,110190.0,0.05332]
[1762046462370,0.18170896,110200.0,110190.0,0.23482467]
[1762046462572,0.98123642,110200.0,110190.0,0.002]
[1762046462798,0.61167769,110200.0,110190.0,0.002]
[1762046467441,1.00383642,110200.0,110190.0,0.002]
[1762046467646,0.61167769,110200.0,110190.0,0.002]
[1762046468915,0.61167769,110200.0,110190.0,0.18350467]
[1762046469758,0.61167769,110200.0,110190.0,0.002]
[1762046470691,0.61167769,110200.0,110190.0,0.18350467]
[1762046471527,0.61167769,110200.0,110190.0,0.002]
[1762046472419,0.61618848,110200.0,110190.0,0.002]
[1762046473299,1.00834721,110200.0,110190.0,0.002]
[1762046474773,1.00383642,110200.0,110190.0,0.002]
[1762046475196,0.61167769,110200.0,110190.0,0.002]
[1762046480257,0.58907769,110200.0,110190.0,0.01718]
[1762046480465,0.58907769,110200.0,110190.0,0.19868467]
[1762046481293,0.58907769,110200.0,110190.0,0.23477467]
[1762046481917,0.58907769,110200.0,110190.0,0.21104467]
[1762046482216,0.58907769,110200.0,110190.0,0.02954]
[1762046487503,0.58907769,110200.0,110190.0,0.21104467]
[1762046487724,0.58907769,110200.0,110190.0,0.05439]
[1762046488208,0.58907769,110200.0,110190.0,0.02954]
[1762046489072,0.19691896,110200.0,110190.0,0.02954]
[1762046489278,0.58907769,110200.0,110190.0,0.02954]
[1762046490627,0.58907769,110200.0,110190.0,0.02913]
[1762046490628,0.22025896,110200.0,110190.0,0.02913]
[1762046490853,0.00022076,110200.0,110190.0,0.26887385]
[1762046491287,0.00022076,110200.0,110190.0,0.23548467]
[1762046495275,0.00022076,110200.0,110190.0,0.6276434]
[1762046495479,0.00022076,110200.0,110190.0,0.23548467]
[1762046496149,0.00022076,110200.0,110190.0,0.6276434]
[1762046496802,0.00022076,110200.0,110190.0,0.23548467]
[1762046497021,0.00022076,110200.0,110190.0,0.6276434]
[1762046500793,0.00022076,110200.0,110190.0,0.6256434]
[1762046501199,0.00022076,110200.0,110190.0,0.6336434]
[1762046502446,0.00022076,110200.0,110190.0,0.6346434]
[1762046521330,0.00022076,110200.0,110190.0,0.24248467]
[1762046521984,0.00022076,110200.0,110190.0,0.24748467]
[1762046533028,0.00022076,110200.0,110190.0,0.63961095]
[1762046535640,0.00022076,110200.0,110190.0,0.71576798]
[1762046535996,0.00022076,110200.0,110190.0,0.63961095]
[1762046549313,0.02749945,110200.0,110190.0,0.63961095]
[1762046556716,0.02749945,110200.0,110190.0,0.24748467]
[1762046556929,0.02749945,110200.0,110190.0,0.63961095]
[1762046559099,0.02749945,110200.0,110190.0,0.24748467]
[1762046561261,0.02749945,110200.0,110190.0,0.63961095]
[1762046580440,0.02749945,110200.0,110190.0,0.24748467]
[1762046582495,0.22469765,110200.0,110190.0,0.04113]
[1762046582736,0.64143393,110200.0,110190.0,0.014]
[1762046583236,0.64143393,110200.0,110190.0,0.006]
[1762046583454,0.64154611,110200.0,110190.0,0.006]
[1762046583670,0.64154611,110200.0,110190.0,0.01]
[1762046583854,0.64154611,110200.0,110190.0,0.009]
[1762046584299,1.03378457,110200.0,110190.0,0.01]
[1762046584565,1.26996685,110200.0,110190.0,0.01]
[1762046585888,1.26996685,110200.0,110190.0,0.009]
[1762046586087,1.26996685,110200.0,110190.0,0.005]
[1762046586584,1.26996685,110200.0,110190.0,0.007]
[1762046588105,0.85311839,110200.0,110190.0,0.02293]
[1762046588348,0.24320945,110200.0,110190.0,0.21658467]
[1762046588566,0.20898765,110200.0,110190.0,0.45030846]
[1762046588991,0.20898765,110200.0,110190.0,0.05807]
[1762046590578,0.20898765,110200.0,110190.0,0.23957467]
[1762046590798,0.02749945,110200.0,110190.0,0.23957467]
[1762046591006,0.20898765,110200.0,110190.0,0.23957467]
[1762046591461,0.20898765,110200.0,110190.0,0.63181313]
[1762046592102,0.20898765,110200.0,110190.0,0.23957467]
[1762046593435,0.64154611,110200.0,110190.0,0.007]
[1762046597893,1.23378457,110200.0,110190.0,0.007]
[1762046598541,0.44930765,110200.0,110190.0,0.007]
[1762046598756,1.23378457,110200.0,110190.0,0.007]
[1762046598972,1.60996685,110200.0,110190.0,0.007]
[1762046601684,1.61096685,110200.0,110190.0,0.007]
[1762046603287,1.60996685,110200.0,110190.0,0.007]
[1762046606940,1.21772839,110200.0,110190.0,0.007]
[1762046608195,1.03624019,110200.0,110190.0,0.007]
[1762046608890,1.01163019,110200.0,110190.0,0.03363]
[1762046609108,0.36749945,110200.0,110190.0,0.23779467]
[1762046610642,0.02749945,110200.0,110190.0,0.63003313]
[1762046611078,0.02749945,110200.0,110190.0,0.71985214]
[1762046611287,0.00022076,110200.0,110190.0,0.63003313]
[1762046612162,0.00022076,110200.0,110190.0,0.62803313]
[1762046612619,0.00022076,110200.0,110190.0,0.63503313]
[1762046613245,0.00022076,110200.0,110190.0,0.63603313]
[1762046616215,0.00022076,110200.0,110190.0,1.02827159]
[1762046616428,0.00022076,110200.0,110190.0,0.70096436]
[1762046616852,0.00022076,110200.0,110190.0,0.70196436]
[1762046617733,0.00022076,110200.0,110190.0,0.70096436]
[1762046617942,0.00022076,110200.0,110190.0,0.70196436]
[1762046619669,0.00022076,110200.0,110190.0,0.70096436]
[1762046620300,0.00022076,110200.0,110190.0,0.70196436]
[1762046620807,0.00022076,110200.0,110190.0,0.70096436]
[1762046621467,0.00022076,110200.0,110190.0,0.70196436]
[1762046621652,0.00022076,110200.0,110190.0,0.70096436]
[1762046621951,0.00022076,110200.0,110190.0,0.70196436]
[1762046622530,0.00022076,110200.0,110190.0,0.70096436]
[1762046622952,0.00022076,110200.0,110190.0,0.70196436]
[1762046623346,0.00022076,110200.0,110190.0,0.70096436]
[1762046623937,0.00022076,110200.0,110190.0,0.70196436]
[1762046624143,0.00022076,110200.0,110190.0,0.70096436]
[1762046625081,0.00022076,110200.0,110190.0,0.70196436]
[1762046625683,0.00022076,110200.0,110190.0,0.70096436]
[1762046626589,0.00022076,110200.0,110190.0,0.70196436]
[1762046627195,0.00022076,110200.0,110190.0,0.63703313]
[1762046629261,0.00022076,110200.0,110190.0,0.63603313]
[1762046630674,0.00022076,110200.0,110190.0,0.63703313]
[1762046631893,0.00022076,110200.0,110190.0,1.02827159]
[1762046632098,0.00022076,110200.0,110190.0,1.02927159]
[1762046632272,0.00022076,110200.0,110190.0,1.1180906]
[1762046632709,0.00022076,110200.0,110190.0,1.29516552]
[1762046634752,0.00022076,110200.0,110190.0,1.30414991]
[1762046636192,0.02727492,110230.0,110220.0,0.18145527]
[1762046636445,0.92345081,110240.0,110230.0,0.1814388]
[1762046636652,0.79349119,110240.0,110230.0,0.1814388]
[1762046636903,0.99013354,110240.0,110230.0,0.1814388]
[1762046637276,0.99013354,110240.0,110230.0,0.18148879]
[1762046637478,0.99013354,110240.0,110230.0,0.17948879]
[1762046639118,0.80871119,110240.0,110230.0,0.17948879]
[1762046639536,0.99013354,110240.0,110230.0,0.17948879]
[1762046639780,0.81271119,110240.0,110230.0,0.17948879]
[1762046640017,0.82166531,110240.0,110230.0,0.17948879]
[1762046640812,1.00308766,110240.0,110230.0,0.17948879]
[1762046641019,0.82166531,110240.0,110230.0,0.17948879]
[1762046642089,1.00308766,110240.0,110230.0,0.17948879]
[1762046642455,1.00397035,110240.0,110230.0,0.17948879]
[1762046644034,0.822548,110240.0,110230.0,0.17948879]
[1762046644263,1.00397035,110240.0,110230.0,0.17948879]
[1762046645426,1.00369271,110240.0,110230.0,0.17948879]
[1762046648982,0.82227036,110240.0,110230.0,0.17948879]
[1762046649189,1.00369271,110240.0,110230.0,0.17948879]
[1762046649393,0.99473859,110240.0,110230.0,0.17948879]
[1762046649596,0.81331624,110240.0,110230.0,0.17948879]
[1762046650221,0.99473859,110240.0,110230.0,0.17948879]
[1762046650431,0.81331624,110240.0,110230.0,0.17948879]
[1762046650841,0.60277777,110240.0,110230.0,0.17948879]
[1762046652095,0.60277777,110240.0,110230.0,0.18148879]
[1762046655656,0.42135542,110240.0,110230.0,0.18148879]
[1762046658271,0.60726072,110240.0,110230.0,0.18148879]
[1762046660665,0.60726072,110240.0,110230.0,4.999e-05]
[1762046662919,0.60726072,110240.0,110230.0,0.18148879]
[1762046663293,0.99922154,110240.0,110230.0,4.999e-05]
[1762046663506,0.99922154,110240.0,110230.0,0.18148879]
[1762046670298,0.99922154,110240.0,110230.0,4.999e-05]
[1762046671237,0.99922154,110240.0,110230.0,0.18148879]
[1762046674336,0.99922154,110240.0,110230.0,4.999e-05]
[1762046683662,0.60726072,110240.0,110230.0,4.999e-05]
[1762046683807,0.99922154,110240.0,110230.0,4.999e-05]
[1762046686838,0.99922154,110240.0,110230.0,0.18148879]
[1762046687353,0.99922154,110240.0,110230.0,4.999e-05]
[1762046688347,0.99922154,110240.0,110230.0,0.18148879]
[1762046689006,0.99922154,110240.0,110230.0,4.999e-05]
[1762046705429,1.39123742,110240.0,110230.0,4.999e-05]
[1762046712996,0.99924907,110240.0,110230.0,4.999e-05]
[1762046715230,1.39123742,110240.0,110230.0,4.999e-05]
[1762046715559,0.99924907,110240.0,110230.0,4.999e-05]
[1762046721270,1.44705638,110240.0,110230.0,4.999e-05]
[1762046721698,1.44805638,110240.0,110230.0,4.999e-05]
[1762046721913,1.44705638,110240.0,110230.0,4.999e-05]
[1762046723036,1.44805638,110240.0,110230.0,4.999e-05]
[1762046724350,1.44705638,110240.0,110230.0,4.999e-05]
[1762046724994,1.44805638,110240.0,110230.0,4.999e-05]
[1762046725209,1.44705638,110240.0,110230.0,4.999e-05]
[1762046725670,1.44805638,110240.0,110230.0,4.999e-05]
[1762046725869,1.44705638,110240.0,110230.0,4.999e-05]
[1762046726083,1.44805638,110240.0,110230.0,4.999e-05]
[1762046728710,1.44805172,110240.0,110230.0,4.999e-05]
[1762046729671,1.44705172,110240.0,110230.0,4.999e-05]
[1762046729902,1.44805172,110240.0,110230.0,4.999e-05]
[1762046730310,1.44705172,110240.0,110230.0,4.999e-05]
[1762046731158,1.44805172,110240.0,110230.0,4.999e-05]
[1762046734069,1.44705172,110240.0,110230.0,4.999e-05]
[1762046734516,1.44805172,110240.0,110230.0,4.999e-05]
[1762046740368,1.44705172,110240.0,110230.0,4.999e-05]
[1762046740585,1.44805172,110240.0,110230.0,4.999e-05]
[1762046741020,1.44705172,110240.0,110230.0,4.999e-05]
[1762046741218,1.44805172,110240.0,110230.0,4.999e-05]
[1762046743778,1.44704322,110240.0,110230.0,4.999e-05]
[1762046744423,1.44804322,110240.0,110230.0,4.999e-05]
[1762046745092,1.44704322,110240.0,110230.0,4.999e-05]
[1762046747071,1.44804322,110240.0,110230.0,4.999e-05]
[1762046748024,1.44704322,110240.0,110230.0,4.999e-05]
[1762046748232,4.44704322,110240.0,110230.0,4.999e-05]
[1762046748438,4.44804322,110240.0,110230.0,4.999e-05]
[1762046748642,4.44704322,110240.0,110230.0,4.999e-05]
[1762046749865,4.44804322,110240.0,110230.0,4.999e-05]
[1762046751288,4.44704322,110240.0,110230.0,4.999e-05]
[1762046751489,4.44804322,110240.0,110230.0,4.999e-05]
[1762046753694,4.44704322,110240.0,110230.0,4.999e-05]
[1762046753899,4.44804322,110240.0,110230.0,4.999e-05]
[1762046754883,4.44704322,110240.0,110230.0,4.999e-05]
[1762046755297,4.44804322,110240.0,110230.0,4.999e-05]
[1762046759572,4.44356493,110240.0,110230.0,4.999e-05]
[1762046759794,4.44804406,110240.0,110230.0,4.999e-05]
[1762046760675,4.44704406,110240.0,110230.0,4.999e-05]
[1762046761336,4.44804406,110240.0,110230.0,4.999e-05]
[1762046761596,4.44704406,110240.0,110230.0,4.999e-05]
[1762046761817,4.44804406,110240.0,110230.0,4.999e-05]
[1762046762259,4.44704406,110240.0,110230.0,4.999e-05]
[1762046762471,4.44804406,110240.0,110230.0,4.999e-05]
[1762046762700,4.44704406,110240.0,110230.0,4.999e-05]
[1762046762951,0.77768508,110240.0,110230.0,0.23283879]
[1762046763169,0.7580569,110240.0,110230.0,0.23283879]
[1762046763378,0.7580569,110240.0,110230.0,0.05139999]
[1762046763587,0.7580569,110240.0,110230.0,0.23283879]
[1762046765844,0.7580569,110240.0,110230.0,0.05139999]
[1762046766057,1.15004525,110240.0,110230.0,0.05139999]
[1762046766926,1.15004525,110240.0,110230.0,0.23283879]
[1762046767359,0.7580569,110240.0,110230.0,0.23283879]
[1762046769504,0.7580569,110240.0,110230.0,0.05139999]
[1762046770241,0.75357777,110240.0,110230.0,0.05139999]
[1762046770886,0.76962777,110240.0,110230.0,0.05139999]
[1762046771704,0.76962777,110240.0,110230.0,0.23283879]
[1762046772494,0.76962777,110240.0,110230.0,0.05139999]
[1762046774079,1.16153788,110240.0,110230.0,0.02766999]
[1762046774288,1.16153788,110240.0,110230.0,4.999e-05]
[1762046774289,1.18977295,110240.0,110230.0,4.999e-05]
[1762046775456,0.77410284,110240.0,110230.0,0.02766999]
[1762046775854,1.16601295,110240.0,110230.0,0.02766999]
[1762046777671,0.75805284,110240.0,110230.0,0.05139999]
[1762046777822,0.75805284,110240.0,110230.0,0.23283879]
[1762046778445,0.75805287,110240.0,110230.0,0.23283879]
[1762046779914,0.77410287,110240.0,110230.0,0.23283879]
[1762046780321,0.77410287,110240.0,110230.0,0.05139999]
[1762046781358,0.77410287,110240.0,110230.0,0.23283879]
[1762046782019,0.59268052,110240.0,110230.0,0.23283879]
[1762046783047,0.77410287,110240.0,110230.0,0.23283879]
[1762046786728,0.57663052,110240.0,110230.0,0.23283879]
[1762046786927,0.75805287,110240.0,110230.0,0.23283879]
[1762046787131,0.77350287,110240.0,110230.0,0.05139999]
[1762046788566,0.77350287,110240.0,110230.0,0.23283879]
[1762046788816,0.75805287,110240.0,110230.0,0.23283879]
[1762046788982,0.75357777,110240.0,110230.0,0.23283879]
[1762046789388,0.75805494,110240.0,110230.0,0.23283879]
[1762046789633,0.73078221,110240.0,110230.0,0.23283879]
[1762046790049,0.00488269,110240.0,110230.0,0.6247489]
[1762046790264,0.00488269,110240.0,110230.0,0.23283879]
[1762046790671,0.00488269,110240.0,110230.0,0.71456791]
[1762046791089,0.00088269,110240.0,110230.0,0.71456791]
[1762046791265,0.00088269,110240.0,110230.0,0.74183621]
[1762046791480,0.00088269,110240.0,110230.0,0.6530172]
[1762046791677,0.00088269,110240.0,110230.0,0.6540172]
[1762046801056,0.00088269,110240.0,110230.0,0.6530172]
[1762046801253,0.00088269,110240.0,110230.0,0.6540172]
[1762046802021,0.00088269,110240.0,110230.0,0.6530172]
[1762046802491,0.00088269,110240.0,110230.0,0.6570172]
[1762046802726,0.00088269,110240.0,110230.0,0.6560172]
[1762046802931,0.00088269,110240.0,110230.0,0.6540172]
[1762046803382,0.00088269,110240.0,110230.0,0.6600172]
[1762046805738,0.00088269,110240.0,110230.0,0.8088172]
[1762046821644,0.00088269,110240.0,110230.0,0.87418477]
[1762046825308,0.00088269,110240.0,110230.0,0.8088172]
[1762046825931,0.00088269,110240.0,110230.0,0.89863621]
[1762046826161,0.00088269,110240.0,110230.0,0.87418477]
[1762046829351,0.00088269,110240.0,110230.0,1.26563478]
[1762046830406,0.00088269,110240.0,110230.0,1.20026721]
[1762046831570,0.00088269,110240.0,110230.0,1.17299891]
[1762046844154,0.00088269,110240.0,110230.0,1.23836648]
[1762046863921,0.00088269,110240.0,110230.0,0.84668642]
[1762046864770,0.00088269,110240.0,110230.0,1.23836648]
[1762046868703,0.00088269,110240.0,110230.0,0.45500636]
[1762046868916,0.00088269,110240.0,110230.0,1.23936648]
[1762046869123,0.00088269,110240.0,110230.0,0.45600636]
[1762046869327,0.00088269,110240.0,110230.0,1.23936648]
[1762046869543,0.00088269,110240.0,110230.0,1.23836648]
[1762046871634,0.00088269,110240.0,110230.0,0.84668642]
[1762046877182,0.00088269,110240.0,110230.0,0.91101777]
[1762046877369,0.00088269,110240.0,110230.0,1.30369783]
[1762046878207,0.00088269,110240.0,110230.0,1.23936648]
[1762046878408,0.00088269,110240.0,110230.0,1.23836648]
[1762046878706,0.00088269,110240.0,110230.0,1.23936648]
[1762046889980,0.00088269,110240.0,110230.0,1.23936648]
[1762046891521,0.00088269,110240.0,110230.0,0.8477058]
[1762046893450,0.00088269,110240.0,110230.0,0.85659591]
[1762046893910,0.00088269,110240.0,110230.0,0.93704375]
[1762046897166,0.00088269,110240.0,110230.0,0.92815364]
[1762046900668,0.00088269,110240.0,110230.0,0.8477058]
[1762046910575,0.00088269,110240.0,110230.0,0.87496882]
[1762046910987,0.00088269,110240.0,110230.0,0.48326938]
[1762046911199,0.00088269,110240.0,110230.0,0.87496882]
[1762046912850,0.00088269,110240.0,110230.0,0.48326938]
[1762046913060,0.00088269,110240.0,110230.0,0.87496882]
[1762046916793,0.00088269,110240.0,110230.0,0.48326938]
[1762046917005,0.00088269,110240.0,110230.0,0.87396882]
[1762046917216,0.00088269,110240.0,110230.0,0.8467058]
[1762046920002,0.00088269,110240.0,110230.0,0.45500636]
[1762046920231,0.00088269,110240.0,110230.0,0.8467058]
[1762046922168,0.02814687,110240.0,110230.0,0.8467058]
[1762046930685,0.02814687,110240.0,110230.0,0.8477058]
[1762046932737,0.00088269,110240.0,110230.0,0.8477058]
[1762046941059,0.00088269,110240.0,110230.0,0.93752481]
[1762046941264,0.00088269,110240.0,110230.0,0.78872481]
[1762046941694,0.00088269,110240.0,110230.0,0.81598785]
[1762046942340,0.00088269,110240.0,110230.0,0.72616884]
[1762046944500,0.00088269,110240.0,110230.0,0.3344694]
[1762046944716,0.00088269,110240.0,110230.0,0.72616884]
[1762046946461,0.00088269,110240.0,110230.0,0.87496884]
[1762046946876,0.00088269,110240.0,110230.0,0.82361884]
[1762046947740,0.00088269,110240.0,110230.0,0.88399227]
[1762046948329,0.00088269,110240.0,110230.0,0.8186247]
[1762046949402,0.00088269,110240.0,110230.0,0.88389443]
[1762046953340,0.00088269,110240.0,110230.0,0.82351005]
[1762046953761,0.02746304,110260.0,110250.0,0.18140589]
[1762046953974,0.0002,110260.0,110250.0,0.67744577]
[1762046954193,0.0002,110260.0,110250.0,0.65930519]
[1762046954402,0.0002,110260.0,110250.0,0.66030519]
[1762046954622,0.0002,110260.0,110250.0,0.77738318]
[1762046956116,0.0002,110260.0,110250.0,0.78538318]
[1762046956320,0.0002,110260.0,110250.0,0.78638318]
[1762046956528,0.0002,110260.0,110250.0,0.78538318]
[1762046956746,0.0002,110260.0,110250.0,0.39569469]
[1762046956959,0.0002,110260.0,110250.0,0.69756417]
[1762046959604,0.00064118,110260.0,110250.0,0.69756417]
[1762046960020,0.00064118,110260.0,110250.0,0.7628339]